bitfinex/quotes_ETHUSD_20250114
["timestamp","ask_amount","ask_price","bid_price","bid_amount"]
[1736888459952,0.7996,3224.1,3223.2,3.54767183]
[1736888460158,0.7996,3224.1,3222.3,1.28468902]
[1736888460320,0.7996,3224.1,3221.5,8.87]
[1736888460321,0.25,3221.4,3221.3,5.31138619]
[1736888460553,0.25,3221.4,3221.3,8.49397381]
[1736888460908,0.25,3221.6,3221.3,8.49397381]
[1736888461062,0.25,3221.9,3221.3,8.49397381]
[1736888461456,0.25,3221.9,3221.1,0.8272]
[1736888461679,0.5,3221.9,3221.1,0.8272]
[1736888462113,0.25,3221.6,3221.1,0.8272]
[1736888462413,0.25,3221.9,3221.4,3.54767183]
[1736888462704,3.90278,3222.5,3221.1,0.8272]
[1736888462705,0.5,3222.3,3221.8,3.54767183]
[1736888462853,0.25,3222.3,3221.8,3.54767183]
[1736888463498,0.5,3222.5,3221.3,39.10746822]
[1736888463706,0.25,3222.2,3221.3,39.10746822]
[1736888464199,0.25,3222.4,3221.3,39.10746822]
[1736888464404,0.25,3222.2,3221.3,39.10746822]
[1736888464998,0.25,3222.2,3221.3,42.21178822]
[1736888465204,0.5,3222.5,3221.4,3.0]
[1736888465591,0.25,3222.3,3221.4,3.0]
[1736888466264,0.5,3222.5,3221.4,3.0]
[1736888466608,0.25,3222.3,3221.4,3.0]
[1736888467263,0.5,3222.5,3221.4,3.0]
[1736888467460,0.25,3222.3,3221.4,3.0]
[1736888467855,0.25,3221.9,3221.1,0.8272]
[1736888468081,0.25,3221.7,3221.1,0.8272]
[1736888468279,0.25,3221.7,3220.3,6.51395189]
[1736888468280,0.25,3221.2,3220.2,4.01902189]
[1736888468496,0.25,3221.0,3220.2,4.01902189]
[1736888469003,0.25,3221.0,3220.2,0.8183]
[1736888469168,0.25,3221.1,3220.2,0.8183]
[1736888470135,0.25,3221.2,3220.2,0.8183]
[1736888470286,0.25,3221.2,3220.3,3.65521]
[1736888470464,0.25,3221.2,3220.4,3.10516]
[1736888472493,0.25,3221.4,3220.4,3.10516]
[1736888472699,0.25,3221.7,3220.8,3.10476]
[1736888472894,0.25,3221.7,3221.0,0.8183]
[1736888473301,0.25,3221.6,3221.0,0.8183]
[1736888473501,1.0346,3222.0,3221.0,0.8183]
[1736888473808,3.10297,3222.8,3221.0,0.8183]
[1736888473809,0.25,3222.2,3221.0,0.8183]
[1736888474002,0.25,3222.1,3221.3,3.0]
[1736888474173,0.25,3222.1,3221.2,3.0]
[1736888474369,0.25,3222.1,3221.3,3.1043]
[1736888475813,0.25,3222.1,3220.8,0.208]
[1736888475814,0.25,3221.8,3220.8,3.10481]
[1736888476019,1.0346,3221.6,3220.8,3.10481]
[1736888476513,0.25,3221.4,3220.6,3.92329]
[1736888477114,0.25,3221.4,3220.6,0.8183]
[1736888477273,0.25,3221.2,3220.6,0.8183]
[1736888477477,0.25,3221.2,3220.3,3.7282476]
[1736888477677,0.5,3221.4,3220.5,3.0]
[1736888477899,0.5,3221.4,3220.6,3.10499]
[1736888478315,0.5,3221.2,3220.4,3.10516]
[1736888478612,0.7846,3221.6,3220.4,3.10519]
[1736888478613,0.25,3220.9,3220.4,3.10519]
[1736888479216,0.25,3221.8,3220.6,3.0]
[1736888479425,0.25,3221.8,3221.0,3.10454]
[1736888479426,0.25,3221.7,3221.0,3.10454]
[1736888479725,0.25,3221.7,3221.1,3.1045]
[1736888480223,0.25,3221.7,3221.2,3.10437]
[1736888480407,0.25,3221.7,3220.8,0.7571]
[1736888480614,0.25,3221.7,3221.2,3.10438]
[1736888480986,0.25,3221.7,3220.9,3.10468]
[1736888480987,0.25,3221.8,3220.8,0.7571]
[1736888481408,0.25,3221.9,3221.6,3.10396]
[1736888481611,0.25,3222.3,3221.9,3.10373]
[1736888481787,0.25,3222.3,3221.9,3.10369]
[1736888481984,0.5,3222.3,3221.9,3.10369]
[1736888482215,0.25,3222.1,3221.9,3.10369]
[1736888482724,0.5,3222.3,3221.1,3.10452]
[1736888483026,0.5,3222.3,3221.9,3.10374]
[1736888483224,0.5,3222.3,3222.0,3.10365]
[1736888483400,0.25,3222.1,3221.8,3.10381]
[1736888483924,0.25,3222.1,3221.4,3.10424]
[1736888484112,0.25,3222.1,3221.6,3.104]
[1736888484313,0.25,3222.1,3221.2,3.63482983]
[1736888484314,0.25,3221.7,3221.0,1.9201787]
[1736888484515,0.25,3221.5,3221.2,3.1044]
[1736888484705,0.25,3221.5,3221.3,3.10432]
[1736888485307,1.0166,3221.7,3221.4,3.10422]
[1736888485504,1.0166,3221.7,3221.0,3.10462]
[1736888485814,0.25,3221.7,3221.5,3.10407]
[1736888486204,0.25,3221.8,3221.7,3.10395]
[1736888487347,1.2666,3222.0,3221.5,3.1041]
[1736888487526,0.25,3221.8,3221.5,3.1041]
[1736888488105,1.2666,3222.0,3221.0,3.10462]
[1736888488305,1.2666,3222.0,3221.7,3.10387]
[1736888488843,1.0166,3222.0,3221.7,3.10387]
[1736888489047,0.25,3222.0,3221.7,3.10387]
[1736888490329,0.25,3222.2,3221.8,3.10383]
[1736888490530,0.25,3222.1,3221.8,3.10383]
[1736888490736,0.25,3222.1,3221.5,3.10404]
[1736888490920,0.25,3222.1,3221.2,3.10442]
[1736888491123,0.25,3222.1,3221.8,3.10385]
[1736888491322,0.25,3222.1,3221.3,3.0]
[1736888491651,0.5,3221.8,3221.2,3.10434]
[1736888491847,0.7666,3221.7,3221.0,1.9201787]
[1736888492049,0.25,3221.4,3221.1,1.9201787]
[1736888492250,0.5,3221.2,3221.1,1.9201787]
[1736888492813,3.59634122,3221.6,3220.5,3.84147881]
[1736888492814,0.7666,3220.9,3220.5,1.9201787]
[1736888493013,0.7666,3220.9,3220.5,5.0252587]
[1736888493541,0.7666,3220.9,3220.2,3.20072189]
[1736888493542,0.7666,3220.9,3220.2,0.60887191]
[1736888493744,0.7666,3220.9,3220.6,3.10499]
[1736888494441,0.7666,3220.9,3220.4,3.10517]
[1736888494614,0.7666,3220.9,3220.5,3.10508]
[1736888495619,0.25,3220.8,3220.3,3.10527]
[1736888495821,0.25,3220.5,3220.1,5.0255887]
[1736888496207,0.25,3220.5,3220.1,1.9201787]
[1736888496409,0.25,3220.4,3220.1,5.0256187]
[1736888496651,0.25,3220.4,3220.2,3.1053]
[1736888496848,0.25,3220.7,3219.9,5.0258287]
[1736888497047,0.25,3220.7,3220.5,3.10508]
[1736888497743,0.24626386,3220.7,3220.6,3.10501]
[1736888498448,0.7666,3220.9,3220.6,3.10501]
[1736888498449,1.01286386,3220.9,3220.6,3.10501]
[1736888499141,0.24626386,3220.9,3220.6,3.10501]
[1736888499535,0.24626386,3220.9,3220.4,1.9201787]
[1736888499739,0.25,3221.0,3220.9,3.10472]
[1736888499934,0.24626386,3221.3,3221.2,3.10443]
[1736888500334,1.01286386,3221.5,3221.2,3.10443]
[1736888501129,1.01286386,3221.5,3221.2,5.0246087]
[1736888502555,0.24626386,3221.3,3221.2,1.9201787]
[1736888502730,0.49626386,3221.3,3221.2,1.9201787]
[1736888503066,0.49626386,3221.3,3221.1,5.66518527]
[1736888503359,0.49626386,3221.3,3221.2,1.9396239]
[1736888505461,0.49626386,3221.3,3221.1,1.9396239]
[1736888506133,0.49626386,3221.1,3221.0,1.9396239]
[1736888507842,0.49626386,3221.1,3220.7,5.0445339]
[1736888508237,0.49626386,3221.1,3220.6,2.56069527]
[1736888508238,0.25,3221.0,3220.9,3.10469]
[1736888508828,0.25,3221.0,3220.9,5.0443139]
[1736888509634,0.25,3221.2,3221.0,3.10454]
[1736888509836,0.24626386,3221.4,3220.9,1.9396239]
[1736888509837,0.25,3221.0,3220.9,1.9396239]
[1736888510049,0.25,3221.3,3221.0,3.10461]
[1736888510584,0.25,3221.3,3221.0,5.0442339]
[1736888511539,0.25,3221.1,3221.0,5.0442339]
[1736888511777,0.25,3221.1,3221.0,3.10461]
[1736888512349,0.25,3221.3,3221.0,3.10461]
[1736888512685,0.25,3221.1,3221.0,3.10461]
[1736888512881,0.25,3221.3,3221.0,3.10461]
[1736888515483,0.25,3221.1,3221.0,3.10461]
[1736888515809,0.25,3221.3,3221.0,3.10461]
[1736888516452,0.25,3221.1,3220.9,1.9396239]
[1736888516793,0.25,3221.1,3220.9,5.0443239]
[1736888517580,0.25,3221.0,3220.9,5.0443239]
[1736888517778,0.25,3221.3,3220.9,5.0443239]
[1736888517991,0.24626386,3220.9,3220.8,1.9396239]
[1736888518418,1.07406386,3220.9,3220.8,1.9396239]
[1736888518577,1.07406386,3220.9,3220.6,1.9396239]
[1736888519165,1.07406386,3220.9,3220.5,5.0446939]
[1736888519475,0.24626386,3220.7,3220.5,1.9396239]
[1736888519684,0.25,3220.6,3220.5,1.9396239]
[1736888519893,0.24626386,3220.7,3220.5,1.9396239]
[1736888520265,0.24626386,3220.7,3220.4,5.66583527]
[1736888520266,0.25,3220.8,3220.6,3.10501]
[1736888520469,0.24626386,3221.6,3221.5,3.10414]
[1736888520798,0.25,3221.9,3221.1,4.33313715]
[1736888520999,0.8278,3222.1,3221.9,3.10375]
[1736888521199,0.24626386,3222.0,3221.5,3.10412]
[1736888521396,0.24626386,3222.0,3221.7,3.10393]
[1736888521597,0.25,3221.9,3221.7,3.10393]
[1736888521797,0.25,3221.9,3221.8,3.10385]
[1736888524146,0.24626386,3222.0,3221.8,3.10385]
[1736888524289,0.25,3221.9,3221.8,3.10385]
[1736888524484,0.25,3221.9,3221.6,5.0436239]
[1736888525743,0.24626386,3222.0,3221.6,3.104]
[1736888525934,0.25,3221.9,3221.6,3.104]
[1736888526144,0.25,3221.9,3221.5,1.9396239]
[1736888526145,0.24626386,3221.7,3221.5,1.9396239]
[1736888526994,0.24626386,3221.7,3221.5,3.10412]
[1736888528218,0.25,3221.9,3221.8,3.10385]
[1736888528431,0.25,3221.9,3221.4,5.0438139]
[1736888528432,1.29586386,3221.9,3221.6,3.104]
[1736888529754,0.24626386,3222.6,3222.1,3.10356]
[1736888530759,0.24626386,3222.6,3221.9,0.797]
[1736888530760,0.25,3222.3,3222.2,1.9396239]
[1736888531047,0.24626386,3222.6,3222.3,3.10337]
[1736888531256,0.24626386,3222.4,3222.3,3.10337]
[1736888531425,0.24626386,3222.6,3222.3,3.10337]
[1736888532124,0.25,3222.7,3222.6,3.10308]
[1736888532326,0.49626386,3223.0,3222.8,3.10279]
[1736888532954,0.25,3223.0,3222.8,3.10279]
[1736888533152,0.25,3223.0,3222.4,5.49716105]
[1736888533312,0.25,3223.2,3222.9,3.10279]
[1736888533652,0.49626386,3223.5,3222.9,3.10279]
[1736888533854,0.49626386,3223.5,3223.1,3.55753715]
[1736888534152,0.49626386,3223.5,3223.1,3.10257]
[1736888534358,0.24626386,3223.3,3222.8,3.10289]
[1736888534715,0.25,3223.2,3222.9,5.0424039]
[1736888534909,0.24626386,3223.1,3222.9,1.9396239]
[1736888535453,0.24626386,3223.1,3222.6,1.9396239]
[1736888535616,0.24626386,3223.1,3222.7,3.10296]
[1736888535828,0.24626386,3222.9,3222.5,8.09620824]
[1736888536031,0.24626386,3222.9,3222.5,4.53867109]
[1736888536361,0.24626386,3222.9,3222.6,3.10304]
[1736888537340,0.49626386,3222.9,3222.6,3.10304]
[1736888537875,0.24626386,3222.6,3222.4,3.10324]
[1736888538169,0.25,3222.4,3222.2,5.0430439]
[1736888538967,0.25,3222.4,3222.2,3.10342]
[1736888539863,0.25,3222.4,3222.3,3.10337]
[1736888540428,0.49626386,3222.6,3222.4,3.10323]
[1736888542770,0.49626386,3222.6,3222.2,6.66095715]
[1736888542986,0.25,3222.4,3222.2,3.10342]
[1736888543361,0.25,3222.4,3222.2,6.03713825]
[1736888544098,0.49626386,3222.4,3222.2,2.93371825]
[1736888544603,0.49626386,3222.4,3222.2,6.03717825]
[1736888546571,0.24626386,3222.4,3222.2,6.03717825]
[1736888546905,0.49626386,3222.4,3222.2,6.03717825]
[1736888547404,0.49626386,3222.4,3222.0,3.10361]
[1736888547606,0.24626386,3222.0,3221.9,2.93371825]
[1736888549709,0.24626386,3222.0,3221.6,2.93371825]
[1736888549876,0.24626386,3222.0,3221.8,3.10384]
[1736888550936,0.24626386,3222.0,3221.9,2.93371825]
[1736888551298,0.25,3222.3,3221.9,2.93371825]
[1736888551639,0.24626386,3222.4,3222.3,3.10337]
[1736888556635,0.24626386,3222.4,3222.2,2.93371825]
[1736888556813,0.24626386,3222.4,3222.2,6.03717825]
[1736888557137,0.24626386,3222.4,3222.2,2.93371825]
[1736888557339,0.25,3222.5,3222.2,2.93371825]
[1736888557340,0.25,3222.5,3222.4,3.10327]
[1736888557496,0.24626386,3222.8,3222.6,3.10308]
[1736888557834,0.24626386,3223.0,3222.9,3.10279]
[1736888558033,0.24626386,3223.0,3222.9,6.03650825]
[1736888558904,0.24626386,3223.0,3222.9,3.10279]
[1736888560153,0.49626386,3223.4,3222.9,2.93371825]
[1736888560438,0.49626386,3223.6,3223.4,3.1023]
[1736888560642,0.25,3223.6,3223.4,3.1023]
[1736888560828,0.25,3223.6,3223.5,3.10221]
[1736888561217,0.49626386,3223.7,3223.5,3.10221]
[1736888561827,0.25,3223.7,3223.6,3.10212]
[1736888562204,0.24626386,3223.9,3223.8,3.10192]
[1736888562844,0.25,3224.0,3223.9,3.10183]
[1736888563045,0.49626386,3224.2,3223.8,2.93371825]
[1736888563213,0.49626386,3224.2,3224.0,3.10164]
[1736888564110,0.7711,3224.7,3224.1,2.93371825]
[1736888564111,0.25,3224.4,3224.1,2.93371825]
[1736888564326,0.25,3224.4,3224.3,3.10144]
[1736888564834,0.25,3224.4,3224.3,2.91044]
[1736888565403,0.25,3224.4,3224.1,2.93371825]
[1736888565730,0.24626386,3224.3,3224.2,3.10147]
[1736888566105,0.25,3224.4,3224.2,3.10147]
[1736888566656,0.24626386,3224.3,3224.2,3.10147]
[1736888567250,0.25,3224.4,3224.2,3.10147]
[1736888567952,0.25,3224.4,3224.3,3.10144]
[1736888568462,0.24626386,3224.5,3224.1,3.75461825]
[1736888568760,0.7839,3225.0,3224.5,3.10119]
[1736888568761,0.24626386,3224.7,3224.5,3.10119]
[1736888569820,0.24626386,3224.7,3224.6,3.10115]
[1736888570155,0.25,3224.8,3224.7,3.10106]
[1736888570721,0.25,3225.2,3225.1,3.10067]
[1736888571038,0.25,3225.5,3225.3,3.10042]
[1736888571709,0.25,3225.3,3225.0,6.03439825]
[1736888572053,0.25,3225.3,3225.0,2.93371825]
[1736888572271,0.25,3225.3,3225.0,6.03445825]
[1736888572937,0.25,3225.3,3225.0,6.01555825]
[1736888573447,0.25,3225.3,3225.1,3.10066]
[1736888573645,0.49626386,3225.6,3225.1,3.10066]
[1736888573818,0.49626386,3225.6,3225.0,2.91481825]
[1736888573819,0.25,3225.3,3225.0,2.91481825]
[1736888574022,0.49626386,3225.3,3224.9,3.10084]
[1736888574952,0.49626386,3225.3,3224.5,3.10123]
[1736888574953,0.24626386,3224.8,3224.5,3.10121]
[1736888575151,0.25,3224.7,3224.4,2.93371825]
[1736888575324,0.25,3224.7,3224.4,3.10131]
[1736888576216,0.25,3225.0,3224.4,2.93371825]
[1736888576417,0.25,3225.2,3224.9,3.10087]
[1736888576717,0.25,3225.2,3224.7,2.93371825]
[1736888576922,0.25,3225.2,3225.0,3.10069]
[1736888577954,0.24626386,3225.1,3224.9,0.7551]
[1736888578158,0.24626386,3225.1,3224.8,3.10089]
[1736888578621,0.24626386,3225.1,3224.9,3.10086]
[1736888580569,3.10008,3225.8,3224.7,2.93371825]
[1736888580570,0.24626386,3225.3,3224.8,3.0]
[1736888580709,0.25,3226.0,3225.4,3.10035]
[1736888581093,0.25,3226.0,3225.6,3.10019]
[1736888581266,0.25,3226.0,3225.9,3.09991]
[1736888581610,0.25,3226.0,3225.9,6.03362825]
[1736888582036,0.24626386,3226.1,3225.9,6.03362825]
[1736888582448,0.24626386,3226.1,3226.0,3.09981]
[1736888583054,0.49626386,3226.1,3226.0,3.09981]
[1736888583259,0.49626386,3226.1,3225.6,2.93371825]
[1736888583552,0.49626386,3226.1,3225.9,3.0999]
[1736888583940,0.8077,3226.4,3225.6,3.1001]
[1736888583941,0.49626386,3225.9,3225.6,3.1001]
[1736888584907,0.25,3225.9,3225.8,3.1]
[1736888585628,0.8077,3226.4,3225.8,0.55]
[1736888585629,0.25,3226.1,3225.8,0.55]
[1736888585828,0.25,3226.0,3225.9,0.55]
[1736888586132,0.25,3226.0,3225.7,3.10009]
[1736888586133,0.49626386,3226.0,3225.7,3.10009]
[1736888586367,0.49626386,3226.0,3225.8,0.55]
[1736888587116,0.49626386,3226.0,3225.5,3.10021]
[1736888587454,0.49626386,3226.0,3225.6,0.55]
[1736888587951,0.24626386,3225.7,3225.5,3.10021]
[1736888588153,0.49626386,3226.0,3225.4,3.0]
[1736888588357,0.49626386,3226.0,3225.7,3.10001]
[1736888589383,0.49626386,3226.0,3225.8,3.09997]
[1736888590621,0.49626386,3226.2,3226.0,3.09978]
[1736888590794,0.49626386,3226.2,3225.8,3.09992]
[1736888591123,0.24626386,3226.0,3225.8,3.09992]
[1736888591280,0.25,3225.9,3225.8,3.64992]
[1736888594832,0.24626386,3225.7,3225.6,3.10016]
[1736888595033,0.49626386,3225.9,3225.7,3.10009]
[1736888595328,0.25,3225.9,3225.7,0.55]
[1736888595825,0.25,3225.9,3225.8,0.55]
[1736888596152,0.49626386,3226.1,3225.8,0.55]
[1736888596331,0.25,3225.9,3225.8,0.55]
[1736888596488,0.25,3225.9,3225.6,2.93371825]
[1736888596691,0.24626386,3225.8,3225.7,3.10008]
[1736888597595,0.25,3225.9,3225.8,3.1]
[1736888598337,0.25,3226.1,3226.0,3.09981]
[1736888599804,0.25,3226.1,3225.8,0.55]
[1736888600007,0.25,3225.9,3225.8,3.64995]
[1736888600406,0.8077,3226.4,3225.8,3.64995]
[1736888600407,0.49626386,3226.2,3225.8,0.55]
[1736888600608,0.49626386,3226.2,3226.0,3.09977]
[1736888601512,0.49626386,3226.2,3225.8,3.64995]
[1736888601924,0.49626386,3225.9,3225.7,3.10008]
[1736888603454,0.8077,3226.4,3225.3,3.68881825]
[1736888603455,0.24626386,3225.4,3225.3,3.10044]
[1736888603810,0.24626386,3225.4,3225.3,3.65044]
[1736888606951,0.24626386,3225.4,3225.2,2.54136932]
[1736888606952,1.076,3225.3,3225.2,1.93409835]
[1736888607129,1.076,3225.3,3225.1,2.59025967]
[1736888607519,0.24626386,3225.2,3225.1,2.59025967]
[1736888608062,0.24626386,3225.2,3225.1,3.10067]
[1736888608763,0.24626386,3225.2,3225.0,2.48968079]
[1736888608951,0.25,3225.1,3225.0,3.14025967]
[1736888609265,0.25,3225.1,3225.0,2.59025967]
[1736888609418,0.25,3225.1,3225.0,1.94074317]
[1736888609620,0.25,3225.1,3224.9,1.94074317]
[1736888610248,0.24626386,3225.0,3224.9,1.94074317]
[1736888612246,0.25,3224.9,3224.8,1.94074317]
[1736888612625,4.17687,3224.9,3224.8,1.94074317]
[1736888612826,4.61918339,3224.9,3224.8,1.94074317]
[1736888613421,4.61918339,3224.9,3224.5,1.94074317]
[1736888613621,0.49626386,3224.6,3224.5,1.94074317]
[1736888614049,0.49626386,3224.6,3224.1,5.04236317]
[1736888614462,0.25,3224.3,3224.1,5.04236317]
[1736888614669,0.25,3224.3,3224.2,1.94074317]
[1736888615168,0.25,3224.3,3224.1,5.04236317]
[1736888615369,0.24626386,3224.4,3224.2,6.58525825]
[1736888615665,0.49626386,3224.8,3224.5,3.10125]
[1736888615865,0.49626386,3224.8,3224.7,3.10106]
[1736888616820,0.49626386,3225.0,3224.9,3.10087]
[1736888617529,0.25,3224.8,3224.7,0.55]
[1736888617730,0.25,3224.8,3224.7,3.65102]
[1736888617925,0.25,3224.8,3224.7,5.59176317]
[1736888618689,0.25,3224.8,3224.7,3.65102]
[1736888620476,0.49626386,3224.8,3224.7,3.65102]
[1736888621119,0.24626386,3224.8,3224.7,3.65102]
[1736888621325,0.49626386,3224.8,3224.7,3.65102]
[1736888624876,0.25,3225.0,3224.7,0.55]
[1736888625074,0.25,3225.0,3224.9,3.10087]
[1736888626273,0.25,3224.8,3224.7,2.49074317]
[1736888626446,0.25,3224.8,3224.7,3.65106]
[1736888626944,0.49626386,3224.8,3224.6,1.94074317]
[1736888627562,0.24626386,3224.5,3224.4,2.49074317]
[1736888627747,0.49626386,3224.5,3224.4,2.49074317]
[1736888628189,0.49626386,3224.5,3224.4,0.55]
[1736888629265,0.49626386,3224.5,3224.4,3.65135]
[1736888638408,0.25,3224.5,3224.4,3.65135]
[1736888638703,0.25,3225.0,3224.9,3.10087]
[1736888638904,0.25,3225.0,3224.7,1.3235]
[1736888638905,0.24626386,3224.8,3224.7,3.10104]
[1736888639210,0.24626386,3224.6,3224.5,5.04193317]
[1736888639504,0.49626386,3224.6,3224.5,1.94074317]
[1736888639887,0.49626386,3224.6,3224.3,5.04214317]
[1736888640384,0.49626386,3224.6,3224.5,3.10125]
[1736888640987,0.24626386,3224.9,3224.8,3.10096]
[1736888642341,0.24626791,3225.0,3224.9,3.10087]
[1736888642646,0.24626386,3225.1,3225.0,3.65077]
[1736888643146,0.24626791,3225.2,3225.0,3.65077]
[1736888643147,0.49253177,3225.4,3225.0,6.58448825]
[1736888643316,0.24626386,3225.4,3225.3,6.58419825]
[1736888643955,0.24626386,3225.1,3224.8,3.10089]
[1736888644246,0.49253177,3225.1,3225.0,3.65077]
[1736888644460,0.49253177,3225.1,3225.0,6.23725073]
[1736888644808,0.49253177,3225.1,3225.0,3.65077]
[1736888645427,0.49253177,3225.1,3225.0,5.59090455]
[1736888647356,0.49253177,3225.1,3225.0,3.65077]
[1736888648656,0.49253177,3225.1,3225.0,6.23725073]
[1736888649008,0.24626386,3225.3,3225.2,3.10058]
[1736888650107,0.24626386,3225.3,3225.2,5.68706073]
[1736888650609,0.24626386,3225.3,3225.2,6.23706073]
[1736888650834,0.24626791,3225.4,3225.3,1.3301]
[1736888651051,0.49253177,3225.4,3225.3,4.43058]
[1736888652205,0.49253177,3225.6,3225.5,3.10029]
[1736888653011,0.49253177,3225.6,3225.5,3.65029]
[1736888653257,0.24626386,3225.9,3225.8,3.65]
[1736888653462,0.24626386,3225.9,3225.8,6.58371825]
[1736888653756,0.24626386,3225.9,3225.8,3.65]
[1736888654555,0.24626386,3225.9,3225.8,5.0398889]
[1736888655113,0.24626386,3225.9,3225.8,5.5898889]
[1736888655622,0.24626386,3225.9,3225.8,6.23651853]
[1736888656151,0.24626386,3225.9,3225.8,3.65]
[1736888656859,0.24626386,3225.9,3225.8,6.23651853]
[1736888657412,0.24626386,3225.9,3225.8,3.65]
[1736888658317,0.24626791,3226.3,3226.2,0.55]
[1736888658513,0.24626386,3226.4,3226.3,3.09952]
[1736888658955,0.49253177,3226.7,3226.6,3.09923]
[1736888659245,0.49253177,3226.7,3226.6,3.64923]
[1736888659246,0.24626791,3226.7,3226.6,3.64923]
[1736888660676,0.24626386,3226.8,3226.7,3.64914]
[1736888660879,0.24626386,3227.0,3226.7,4.42544]
[1736888661044,0.24626386,3227.0,3226.9,3.64894]
[1736888663454,0.49253177,3227.2,3227.1,3.64875]
[1736888663677,0.24626386,3227.2,3227.1,3.64875]
[1736888663981,0.49253177,3227.2,3227.1,3.64875]
[1736888664337,0.24626386,3227.2,3227.1,3.64875]
[1736888664540,0.24626386,3227.4,3227.3,4.42486]
[1736888666642,0.24626386,3227.5,3227.4,3.09846]
[1736888666845,0.40731354,3227.8,3227.7,3.09818]
[1736888667204,0.40731354,3227.8,3227.7,9.80819825]
[1736888667205,9.68e-06,3227.8,3227.7,9.80819825]
[1736888667344,0.005,3228.4,3228.3,3.0976]
[1736888667543,0.005,3228.4,3228.3,9.80761825]
[1736888668593,1e-05,3228.4,3228.3,9.80761825]
[1736888669283,1e-05,3228.4,3228.3,18.67761825]
[1736888669595,0.24626386,3229.5,3229.4,3.09655]
[1736888669954,0.24626791,3229.6,3229.5,3.09645]
[1736888670904,0.24626791,3229.4,3229.3,3.0966]
[1736888671193,0.49253177,3229.4,3229.3,3.0966]
[1736888672800,0.49253177,3229.4,3229.1,6.66230813]
[1736888673007,0.49253177,3229.4,3229.1,3.72858988]
[1736888673375,0.49253177,3229.4,3229.3,3.09664]
[1736888673697,0.03257144,3230.3,3229.1,3.56550813]
[1736888673698,0.24626386,3230.1,3230.0,3.09597]
[1736888673998,0.27883935,3230.3,3230.2,3.09578]
[1736888674172,0.52510321,3230.3,3230.2,3.09578]
[1736888674508,0.03257144,3230.3,3230.2,3.87208]
[1736888675804,0.03257144,3230.3,3230.2,4.48128602]
[1736888676005,0.03257144,3230.3,3230.2,7.48128602]
[1736888676890,1.44e-06,3230.7,3230.6,3.0954]
[1736888677201,0.24626386,3231.7,3230.9,6.09511]
[1736888677402,0.24626386,3231.8,3230.9,6.28711]
[1736888677610,0.24626386,3231.6,3230.9,6.28711]
[1736888678217,0.24626791,3231.5,3230.9,9.22082825]
[1736888678375,0.24626791,3231.5,3230.9,9.02882825]
[1736888678781,0.24626386,3231.6,3230.9,9.02882825]
[1736888679062,0.24626386,3231.8,3231.3,3.87102]
[1736888679266,0.49253177,3232.1,3231.3,6.80473825]
[1736888679512,0.24626791,3232.1,3231.3,6.80473825]
[1736888679801,0.49253177,3232.1,3231.3,6.80473825]
[1736888680163,0.49253177,3231.9,3231.3,6.02843825]
[1736888680376,0.24626791,3231.5,3231.3,3.09472]
[1736888680577,0.24626791,3231.5,3231.0,3.71001825]
[1736888680578,0.49253177,3231.5,3231.2,3.0]
[1736888680781,0.49253177,3231.5,3231.2,6.09481]
[1736888681075,0.49253177,3231.5,3231.0,3.71001825]
[1736888681076,0.24626386,3231.1,3231.0,3.09499]
[1736888681275,0.25126386,3231.4,3231.0,2.93371825]
[1736888681582,0.005,3231.4,3231.3,9.02843825]
[1736888681769,0.005,3231.4,3231.3,9.80473825]
[1736888682597,0.49253177,3232.1,3232.0,3.09405]
[1736888683503,0.24626386,3232.1,3232.0,3.09405]
[1736888683802,0.49253177,3232.3,3231.7,2.93371825]
[1736888684008,0.49253177,3232.1,3231.8,6.09425]
[1736888684307,0.49253177,3232.1,3231.8,3.0]
[1736888684510,0.24626386,3231.9,3231.8,3.0]
[1736888684992,0.24626386,3231.7,3231.5,3.09449]
[1736888685192,0.24626386,3231.7,3231.3,0.7763]
[1736888685398,0.24626386,3231.7,3231.5,3.09449]
[1736888685604,0.24626791,3231.6,3231.4,3.09454]
[1736888685784,0.24626791,3231.6,3231.1,2.93371825]
[1736888685785,0.24626386,3231.5,3231.2,3.09478]
[1736888685980,0.49253177,3231.3,3230.8,2.93371825]
[1736888686196,0.49253177,3231.1,3230.8,6.02890825]
[1736888686428,0.24626386,3230.9,3230.6,3.09535]
[1736888686602,0.24626386,3230.7,3230.6,3.09535]
[1736888686802,0.24626386,3230.7,3230.5,3.54203636]
[1736888687008,0.24626386,3230.7,3230.5,6.02914825]
[1736888687318,0.24626386,3230.4,3230.3,3.09564]
[1736888687522,0.24626386,3230.2,3230.1,3.09587]
[1736888687874,0.24626791,3230.3,3230.0,0.6327376]
[1736888688211,0.24626791,3230.3,3230.2,3.09578]
[1736888688518,0.24626791,3230.3,3230.0,0.6327376]
[1736888688670,0.8181,3230.7,3229.9,3.09607]
[1736888688671,0.24626791,3230.0,3229.9,3.09607]
[1736888691441,0.24626791,3230.0,3229.6,3.0]
[1736888691631,0.24626791,3230.0,3229.9,3.09607]
[1736888692330,0.24626791,3230.0,3229.8,3.09613]
[1736888692623,0.24626791,3230.0,3229.5,0.61862254]
[1736888692821,0.24626791,3230.0,3229.7,3.09619]
[1736888693524,0.24626791,3230.0,3229.5,0.61862254]
[1736888693680,0.24626791,3230.0,3229.9,3.09607]
[1736888694519,0.24626791,3230.2,3230.1,3.09587]
[1736888695703,0.24626791,3230.4,3230.3,3.09568]
[1736888696234,0.24626791,3230.6,3230.5,3.09549]
[1736888697209,0.24626791,3230.6,3230.3,3.09564]
[1736888697399,0.24626791,3230.3,3230.2,3.09578]
[1736888701818,0.24626791,3230.6,3230.5,3.09549]
[1736888703152,0.24626791,3230.6,3230.0,3.0]
[1736888703323,0.24626791,3230.6,3230.4,3.09557]
[1736888704138,0.24626791,3230.3,3230.1,3.09584]